fUST/lending_fUST_20250624
["ID","MTS","AMOUNT","RATE_DAILY","PERIOD"]
[367332474,1750753848530,-393.0,0.00019707,2]
[367332475,1750753848540,-160.0,0.0001971,2]
[367332476,1750753848549,-524.15841286,0.0001971,2]
[367332477,1750753848559,-836.80226758,0.0001971,2]
[367332478,1750753848653,-846.68469334,0.0001971,2]
[367332479,1750753848664,-160.0,0.0001971,2]
[367332480,1750753848673,-425.14181427,0.0001971,2]
[367332481,1750753848683,-160.0,0.0001971,2]
[367332482,1750753848693,-213.66798275,0.0001971,2]
[367332483,1750753848703,-12556.00642039,0.0001971,2]
[367332484,1750753848712,-230.20892031,0.0001971,2]
[367332485,1750753848722,-160.0,0.0001971,2]
[367332486,1750753848731,-160.0,0.0001971,2]
[367332487,1750753848741,-160.0,0.0001971,2]
[367332488,1750753848751,-160.0,0.0001971,2]
[367332489,1750753848761,-25000.0,0.00019714,2]
[367332490,1750753848770,-5000.0,0.00019714,2]
[367332491,1750753848780,-1044.40947101,0.00019715,2]
[367332492,1750753848789,-622.43195277,0.00019721,2]
[367332493,1750753848799,-736.61841844,0.00019721,2]
[367332494,1750753848809,-1000.0,0.00019721,2]
[367332495,1750753848818,-1000.0,0.00019721,2]
[367332496,1750753848827,-746.24509301,0.00019721,2]
[367332497,1750753848837,-1000.0,0.00019721,2]
[367332498,1750753848847,-1000.0,0.00019721,2]
[367332499,1750753848857,-501.78579419,0.00019721,2]
[367332500,1750753848867,-1000.95945112,0.00019721,2]
[367332501,1750753848876,-287.91233316,0.00019726,2]
[367332502,1750753848886,-460.0,0.00019726,2]
[367332503,1750753848896,-460.0,0.00019726,2]
[367332504,1750753848905,-460.0,0.00019726,2]
[367332505,1750753848914,-460.0,0.00019726,2]
[367332506,1750753848924,-460.0,0.00019726,2]
[367332507,1750753848935,-460.0,0.00019726,2]
[367332508,1750753848944,-460.0,0.00019726,2]
[367332509,1750753848954,-460.0,0.00019726,2]
[367332510,1750753848963,-540.0,0.00019726,2]
[367332511,1750753848972,-460.0,0.00019726,2]
[367332512,1750753848982,-460.0,0.00019726,2]
[367332513,1750753848991,-460.0,0.00019726,2]
[367332514,1750753849001,-460.0,0.00019726,2]
[367332515,1750753849010,-460.0,0.00019726,2]
[367332516,1750753849019,-460.0,0.00019726,2]
[367332517,1750753849029,-460.0,0.00019726,2]
[367332518,1750753849039,-460.0,0.00019726,2]
[367332519,1750753849049,-460.0,0.00019726,2]
[367332520,1750753849059,-460.0,0.00019726,2]
[367332521,1750753849068,-405.22657715,0.00019726,2]
[367332522,1750753849077,-460.0,0.00019726,2]
[367332523,1750753849086,-597.57,0.00019726,2]
[367332524,1750753849095,-460.0,0.00019726,2]
[367332525,1750753849104,-460.0,0.00019726,2]
[367332526,1750753849113,-460.0,0.00019726,2]
[367332527,1750753849122,-460.0,0.00019726,2]
[367332528,1750753849132,-460.0,0.00019726,2]
[367332529,1750753849143,-460.0,0.00019726,2]
[367332530,1750753849152,-442.72484457,0.00019726,2]
[367332531,1750753849161,-460.0,0.00019726,2]
[367332532,1750753849170,-460.0,0.00019726,2]
[367332533,1750753849179,-570.83542155,0.00019726,2]
[367332534,1750753849189,-897.7,0.00019726,2]
[367332535,1750753849198,-460.0,0.00019726,2]
[367332536,1750753849207,-460.0,0.00019726,2]
[367332537,1750753849218,-460.0,0.00019726,2]
[367332538,1750753849227,-460.0,0.00019726,2]
[367332539,1750753849240,-460.0,0.00019726,2]
[367332540,1750753849249,-460.0,0.00019726,2]
[367332541,1750753849259,-460.0,0.00019726,2]
[367332542,1750753849268,-460.0,0.00019726,2]
[367332543,1750753849287,-460.0,0.00019726,2]
[367332544,1750753849298,-565.56,0.00019726,2]
[367332545,1750753849309,-460.0,0.00019726,2]
[367332546,1750753849319,-460.0,0.00019726,2]
[367332547,1750753849329,-460.0,0.00019726,2]
[367332548,1750753849339,-460.0,0.00019726,2]
[367332549,1750753849348,-230.10813448,0.00019726,2]
[367332550,1750753849358,-460.0,0.00019726,2]
[367332551,1750753849368,-1570.91,0.00019726,2]
[367332552,1750753849378,-460.0,0.00019726,2]
[367332553,1750753849388,-460.0,0.00019726,2]
[367332554,1750753849399,-460.0,0.00019726,2]
[367332555,1750753849409,-460.0,0.00019726,2]
[367332556,1750753849418,-500.0,0.00019726,2]
[367332557,1750753849428,-460.0,0.00019726,2]
[367332558,1750753849437,-1063.33,0.00019726,2]
[367332559,1750753849448,-460.0,0.00019726,2]
[367332560,1750753849458,-460.0,0.00019726,2]
[367332561,1750753849467,-460.0,0.00019726,2]
[367332562,1750753849477,-460.0,0.00019726,2]
[367332563,1750753849487,-460.0,0.00019726,2]
[367332564,1750753849496,-460.0,0.00019726,2]
[367332565,1750753849505,-460.0,0.00019726,2]
[367332566,1750753849515,-460.0,0.00019726,2]
[367332567,1750753849524,-460.0,0.00019726,2]
[367332568,1750753849534,-460.0,0.00019726,2]
[367332569,1750753849544,-460.0,0.00019726,2]
[367332570,1750753849554,-460.0,0.00019726,2]
[367332571,1750753849563,-460.0,0.00019726,2]
[367332572,1750753849573,-1236.02,0.00019726,2]
[367332573,1750753849582,-460.0,0.00019726,2]
[367332574,1750753849592,-460.0,0.00019726,2]
[367332575,1750753849602,-460.0,0.00019726,2]
[367332576,1750753849612,-764.46,0.00019726,2]
[367332577,1750753849623,-505.75,0.00019726,2]
[367332578,1750753849633,-460.0,0.00019726,2]
[367332579,1750753849643,-460.0,0.00019726,2]
[367332580,1750753849652,-589.43391217,0.00019726,2]
[367332581,1750753849662,-460.0,0.00019726,2]
[367332582,1750753849671,-460.0,0.00019726,2]
[367332583,1750753849681,-460.0,0.00019726,2]
[367332584,1750753849691,-460.0,0.00019726,2]
[367332585,1750753849701,-460.0,0.00019726,2]
[367332586,1750753849710,-460.0,0.00019726,2]
[367332587,1750753849720,-460.0,0.00019726,2]
[367332588,1750753849730,-460.0,0.00019726,2]
[367332589,1750753849739,-460.0,0.00019726,2]
[367332590,1750753849749,-460.0,0.00019726,2]
[367332591,1750753849758,-460.0,0.00019726,2]
[367332592,1750753849768,-460.0,0.00019726,2]
[367332593,1750753849777,-460.0,0.00019726,2]
[367332594,1750753849786,-460.0,0.00019726,2]
[367332595,1750753849796,-3596.87,0.00019726,2]
[367332596,1750753849806,-460.0,0.00019726,2]
[367332597,1750753849815,-553.59,0.00019726,2]
[367332598,1750753849825,-1102.05,0.00019726,2]
[367332599,1750753849835,-460.0,0.00019726,2]
[367332600,1750753849845,-460.0,0.00019726,2]
[367332601,1750753849854,-460.0,0.00019726,2]
[367332602,1750753849863,-460.0,0.00019726,2]
[367332603,1750753849873,-250.29023511,0.00019726,2]
[367332604,1750753849883,-1669.02,0.00019726,2]
[367332605,1750753849892,-460.0,0.00019726,2]
[367332606,1750753849902,-460.22,0.00019726,2]
[367332607,1750753849911,-460.0,0.00019726,2]
[367332608,1750753849920,-460.0,0.00019726,2]
[367332609,1750753849930,-460.0,0.00019726,2]
[367332610,1750753849939,-1429.9,0.00019726,2]
[367332611,1750753849949,-1393.46,0.00019726,2]
[367332612,1750753849959,-4047.25,0.00019726,2]
[367332613,1750753849968,-157.01829995,0.00019726,2]
[367332614,1750753849978,-460.0,0.00019726,2]
[367332615,1750753849987,-1153.41,0.00019726,2]
[367332616,1750753850102,-460.0,0.00019726,2]
[367332617,1750753850113,-460.0,0.00019726,2]
[367332618,1750753850123,-460.0,0.00019726,2]
[367332619,1750753850134,-552.79,0.00019726,2]
[367332620,1750753850143,-460.0,0.00019726,2]
[367332621,1750753850153,-460.0,0.00019726,2]
[367332622,1750753850163,-460.0,0.00019726,2]
[367332623,1750753850172,-1245.34,0.00019726,2]
[367332624,1750753850181,-460.0,0.00019726,2]
[367332625,1750753850190,-460.0,0.00019726,2]
[367332626,1750753850200,-1260.54,0.00019726,2]
[367332627,1750753850209,-460.0,0.00019726,2]
[367332628,1750753850218,-460.0,0.00019726,2]
[367332629,1750753850227,-460.0,0.00019726,2]
[367332630,1750753850241,-460.0,0.00019726,2]
[367332631,1750753850251,-460.0,0.00019726,2]
[367332632,1750753850260,-460.0,0.00019726,2]
[367332633,1750753850270,-1307.67,0.00019726,2]
[367332634,1750753850280,-3803.53,0.00019726,2]
[367332635,1750753850289,-632.19,0.00019726,2]
[367332636,1750753850298,-460.0,0.00019726,2]
[367332637,1750753850308,-460.0,0.00019726,2]
[367332638,1750753850319,-2444.82,0.00019726,2]
[367332639,1750753850328,-460.0,0.00019726,2]
[367332640,1750753850338,-460.0,0.00019726,2]
[367332641,1750753850347,-495.64,0.00019726,2]
[367332642,1750753850357,-500.0,0.00019726,2]
[367332643,1750753850367,-4883.92,0.00019726,2]
[367332644,1750753850375,-460.0,0.00019726,2]
[367332645,1750753850385,-460.0,0.00019726,2]
[367332646,1750753850393,-460.0,0.00019726,2]
[367332647,1750753850402,-460.0,0.00019726,2]
[367332648,1750753850411,-460.0,0.00019726,2]
[367332649,1750753850420,-460.0,0.00019726,2]
[367332650,1750753850430,-524.71,0.00019726,2]
[367332651,1750753850439,-1033.7,0.00019726,2]
[367332652,1750753850448,-1169.19,0.00019726,2]
[367332653,1750753850458,-460.0,0.00019726,2]
[367332654,1750753850468,-460.0,0.00019726,2]
[367332655,1750753850477,-993.21,0.00019726,2]
[367332656,1750753850486,-460.0,0.00019726,2]
[367332657,1750753850496,-460.0,0.00019726,2]
[367332658,1750753850505,-460.0,0.00019726,2]
[367332659,1750753850515,-460.0,0.00019726,2]
[367332660,1750753850524,-2909.68,0.00019726,2]
[367332661,1750753850534,-460.0,0.00019726,2]
[367332662,1750753850543,-460.0,0.00019726,2]
[367332663,1750753850552,-460.0,0.00019726,2]
[367332664,1750753850562,-970.5,0.00019726,2]
[367332665,1750753850571,-460.0,0.00019726,2]
[367332666,1750753850580,-1536.63,0.00019726,2]
[367332667,1750753850591,-460.0,0.00019726,2]
[367332668,1750753850602,-4779.35,0.00019726,2]
[367332669,1750753850611,-559.38,0.00019726,2]
[367332670,1750753850621,-460.0,0.00019726,2]
[367332671,1750753850633,-460.0,0.00019726,2]
[367332672,1750753850643,-460.0,0.00019726,2]
[367332673,1750753850652,-460.0,0.00019726,2]
[367332674,1750753850662,-460.0,0.00019726,2]
[367332675,1750753850671,-784.58,0.00019726,2]
[367332676,1750753850680,-460.0,0.00019726,2]
[367332677,1750753850689,-490.83,0.00019726,2]
[367332678,1750753850698,-3740.04,0.00019726,2]
[367332679,1750753850707,-460.0,0.00019726,2]
[367332680,1750753850717,-460.0,0.00019726,2]
[367332681,1750753850727,-460.0,0.00019726,2]
[367332682,1750753850736,-578.07,0.00019726,2]
[367332683,1750753850745,-240.84538776,0.00019726,2]
[367332684,1750753850755,-460.0,0.00019726,2]
[367332685,1750753850764,-460.0,0.00019726,2]
[367332686,1750753850773,-460.0,0.00019726,2]
[367332687,1750753850783,-735.87,0.00019726,2]
[367332688,1750753850792,-471.2,0.00019726,2]
[367332689,1750753850802,-460.0,0.00019726,2]
[367332690,1750753850811,-460.0,0.00019726,2]
[367332691,1750753850820,-460.0,0.00019726,2]
[367332692,1750753850830,-1246.9,0.00019726,2]
[367332693,1750753850839,-460.0,0.00019726,2]
[367332694,1750753850850,-460.0,0.00019726,2]
[367332695,1750753850860,-917.49,0.00019726,2]
[367332696,1750753850870,-4012.53,0.00019726,2]
[367332697,1750753850879,-460.0,0.00019726,2]
[367332698,1750753850888,-1024.0,0.00019726,2]
[367332699,1750753850898,-460.0,0.00019726,2]
[367332700,1750753850906,-460.0,0.00019726,2]
[367332701,1750753850916,-460.0,0.00019726,2]
[367332702,1750753850926,-2174.0,0.00019726,2]
[367332703,1750753850936,-1810.6,0.00019726,2]
[367332704,1750753850945,-460.0,0.00019726,2]
[367332705,1750753850955,-460.0,0.00019726,2]
[367332706,1750753850964,-460.0,0.00019726,2]
[367332707,1750753850974,-460.0,0.00019726,2]
[367332708,1750753850984,-460.0,0.00019726,2]
[367332709,1750753850994,-460.0,0.00019726,2]
[367332710,1750753851003,-460.0,0.00019726,2]
[367332711,1750753851013,-460.0,0.00019726,2]
[367332712,1750753851023,-3902.37,0.00019726,2]
[367332713,1750753851034,-1282.97,0.00019726,2]
[367332714,1750753851044,-460.0,0.00019726,2]
[367332715,1750753851053,-460.0,0.00019726,2]
[367332716,1750753851064,-9554.89,0.00019726,2]
[367332717,1750753851073,-460.0,0.00019726,2]
[367332718,1750753851083,-435.28217313,0.00019726,2]
[367332719,1750753851094,-470.38,0.00019726,2]
[367332720,1750753851103,-460.0,0.00019726,2]
[367332721,1750753851113,-4596.98,0.00019726,2]
[367332722,1750753851123,-460.0,0.00019726,2]
[367332723,1750753851133,-1536.12,0.00019726,2]
[367332724,1750753851143,-460.0,0.00019726,2]
[367332725,1750753851154,-827.88,0.00019726,2]
[367332726,1750753851164,-1383.99,0.00019726,2]
[367332727,1750753851174,-1445.24,0.00019726,2]
[367332728,1750753851183,-460.0,0.00019726,2]
[367332729,1750753851192,-460.0,0.00019726,2]
[367332730,1750753851202,-460.0,0.00019726,2]
[367332731,1750753851211,-460.0,0.00019726,2]
[367332732,1750753851219,-741.52,0.00019726,2]
[367332733,1750753851231,-460.0,0.00019726,2]
[367332734,1750753851243,-3721.17,0.00019726,2]
[367332735,1750753851253,-1427.47,0.00019726,2]
[367332736,1750753851263,-2744.12,0.00019726,2]
[367332737,1750753851274,-1425.02,0.00019726,2]
[367332738,1750753851284,-1214.81,0.00019726,2]
[367332739,1750753851293,-178.90351438,0.00019726,2]
[367332740,1750753851303,-460.0,0.00019726,2]
[367332741,1750753851313,-460.0,0.00019726,2]
[367332742,1750753851322,-374.03,0.00019726,2]
[367332743,1750753851409,-460.0,0.00019726,2]
[367332744,1750753851419,-460.0,0.00019726,2]
[367332745,1750753851428,-460.0,0.00019726,2]
[367332746,1750753851438,-460.0,0.00019726,2]
[367332747,1750753851447,-460.0,0.00019726,2]
[367332748,1750753851457,-500.0,0.00019726,2]
[367332749,1750753851466,-460.0,0.00019726,2]
[367332750,1750753851476,-196.0,0.00019768,2]
[367332751,1750753851486,-500.0,0.00019773,2]
[367332752,1750753851495,-500.0,0.00019773,2]
[367332753,1750753851504,-225.11317254,0.00019773,2]
[367332754,1750753851513,-500.0,0.00019773,2]
[367332755,1750753851522,-500.0,0.00019773,2]
[367332756,1750753851531,-500.0,0.00019773,2]
[367332757,1750753851540,-299.84946788,0.00019773,2]
[367332758,1750753851550,-256.77514334,0.00019773,2]
[367332759,1750753851559,-475.91412624,0.00019773,2]
[367332760,1750753851568,-500.0,0.00019773,2]
[367332761,1750753851577,-500.0,0.00019773,2]
[367332762,1750753851587,-156.8042118,0.00019773,2]
[367332763,1750753851596,-500.0,0.00019773,2]
[367332764,1750753851606,-154.3279105,0.00019773,2]
[367332765,1750753851616,-500.0,0.00019773,2]
[367332766,1750753851625,-500.0,0.00019773,2]
[367332767,1750753851636,-500.0,0.00019773,2]
[367332768,1750753851645,-500.0,0.00019773,2]
[367332769,1750753851656,-500.0,0.00019773,2]
[367332770,1750753851666,-500.0,0.00019773,2]
[367332771,1750753851675,-500.0,0.00019773,2]
[367332772,1750753851684,-500.0,0.00019773,2]
[367332773,1750753851692,-160.90592267,0.00019773,2]
[367332774,1750753851702,-500.0,0.00019773,2]
[367332775,1750753851710,-500.0,0.00019773,2]
[367332776,1750753851720,-500.0,0.00019773,2]
[367332777,1750753851729,-500.0,0.00019773,2]
[367332778,1750753851739,-500.0,0.00019773,2]
[367332779,1750753851748,-633.33718098,0.00019773,2]
[367332780,1750753851757,-157539.48475559,0.0001979,2]
[367332781,1750753851766,-151.0,0.000198,2]
[367332782,1750753851776,-196.0,0.0001982,2]
[367332783,1750753851785,-151.0,0.000199,2]
[367332784,1750753851794,-6750.3562104,0.000199,2]
[367332785,1750753851803,-500.0,0.00019927,2]
[367332786,1750753851813,-500.0,0.00019973,2]
[367332787,1750753851824,-500.0,0.00019973,2]
[367332788,1750753851833,-500.0,0.00019973,2]
[367332789,1750753851843,-500.0,0.00019973,2]
[367332790,1750753851852,-582.69328266,0.00019973,2]
[367332791,1750753851861,-500.0,0.00019973,2]
[367332792,1750753851870,-500.0,0.00019973,2]
[367332793,1750753851879,-500.0,0.00019973,2]
[367332794,1750753851888,-500.0,0.00019973,2]
[367332795,1750753851897,-500.0,0.00019973,2]
[367332796,1750753851907,-500.0,0.00019973,2]
[367332797,1750753851916,-500.0,0.00019973,2]
[367332798,1750753851925,-151.0,0.00019973,2]
[367332799,1750753851934,-151.0,0.00019973,2]
[367332800,1750753851950,-216.0,0.00019973,2]
[367332801,1750753851970,-100000.0,0.0001999,2]
[367332802,1750753851987,-222981.57520218,0.00019998,2]
[367332803,1750753852007,-43994.62612726,0.00019998,2]
[367332804,1750753852026,-460.0,0.0002,2]
[367332805,1750753852045,-460.0,0.0002,2]
[367332806,1750753852062,-460.0,0.0002,2]
[367332807,1750753852080,-460.0,0.0002,2]
[367332808,1750753852094,-460.0,0.0002,2]
[367332809,1750753852112,-460.0,0.0002,2]
[367332810,1750753852130,-460.0,0.0002,2]
[367332811,1750753852148,-460.0,0.0002,2]
[367332812,1750753852159,-460.0,0.0002,2]
[367332813,1750753852179,-460.0,0.0002,2]
[367332814,1750753852192,-460.0,0.0002,2]
[367332815,1750753852207,-376.43852364,0.0002,2]
[367332816,1750753852220,-460.0,0.0002,2]
[367332817,1750753852236,-460.0,0.0002,2]
[367332818,1750753852251,-460.0,0.0002,2]
[367332819,1750753852266,-460.0,0.0002,2]
[367332820,1750753852281,-460.0,0.0002,2]
[367332821,1750753852295,-460.0,0.0002,2]
[367332822,1750753852310,-460.0,0.0002,2]
[367332823,1750753852323,-597.57,0.0002,2]
[367332824,1750753852338,-460.0,0.0002,2]
[367332825,1750753852352,-460.0,0.0002,2]
[367332826,1750753852366,-460.0,0.0002,2]
[367332827,1750753852381,-460.0,0.0002,2]
[367332828,1750753852395,-460.0,0.0002,2]
[367332829,1750753852409,-460.0,0.0002,2]
[367332830,1750753852425,-460.0,0.0002,2]
[367332831,1750753852439,-460.0,0.0002,2]
[367332832,1750753852454,-897.7,0.0002,2]
[367332833,1750753852469,-460.0,0.0002,2]
[367332834,1750753852484,-460.0,0.0002,2]
[367332835,1750753852498,-460.0,0.0002,2]
[367332836,1750753852513,-460.0,0.0002,2]
[367332837,1750753852528,-3575.0,0.0002,2]
[367332838,1750753852542,-460.0,0.0002,2]
[367332839,1750753852557,-460.0,0.0002,2]
[367332840,1750753852572,-460.0,0.0002,2]
[367332841,1750753852587,-6857.0,0.0002,2]
[367332842,1750753852601,-460.0,0.0002,2]
[367332843,1750753852615,-565.56,0.0002,2]
[367332844,1750753852630,-526.10185237,0.0002,2]
[367332845,1750753852644,-460.0,0.0002,2]
[367332846,1750753852658,-460.0,0.0002,2]
[367332847,1750753852673,-460.0,0.0002,2]
[367332848,1750753852687,-460.0,0.0002,2]
[367332849,1750753852703,-1570.91,0.0002,2]
[367332850,1750753852718,-460.0,0.0002,2]
[367332851,1750753852733,-460.28646618,0.0002,2]
[367332852,1750753852748,-460.0,0.0002,2]
[367332853,1750753852763,-542.57089775,0.0002,2]
[367332854,1750753852779,-460.0,0.0002,2]
[367332855,1750753852791,-1063.33,0.0002,2]
[367332856,1750753852801,-460.0,0.0002,2]
[367332857,1750753852810,-460.0,0.0002,2]
[367332858,1750753852820,-460.0,0.0002,2]
[367332859,1750753852933,-495.22403737,0.0002,2]
[367332860,1750753852993,-460.0,0.0002,2]
[367332861,1750753853003,-460.0,0.0002,2]
[367332862,1750753853012,-460.0,0.0002,2]
[367332863,1750753853022,-460.0,0.0002,2]
[367332864,1750753853031,-460.0,0.0002,2]
[367332865,1750753853041,-460.0,0.0002,2]
[367332866,1750753853050,-460.0,0.0002,2]
[367332867,1750753853059,-460.0,0.0002,2]
[367332868,1750753853069,-460.0,0.0002,2]
[367332869,1750753853078,-1236.02,0.0002,2]
[367332870,1750753853087,-460.0,0.0002,2]
[367332871,1750753853096,-460.0,0.0002,2]
[367332872,1750753853105,-764.46,0.0002,2]
[367332873,1750753853114,-505.75,0.0002,2]
[367332874,1750753853123,-460.0,0.0002,2]
[367332875,1750753853133,-460.0,0.0002,2]
[367332876,1750753853142,-580.63788878,0.0002,2]
[367332877,1750753853152,-460.0,0.0002,2]
[367332878,1750753853161,-460.0,0.0002,2]
[367332879,1750753853170,-460.0,0.0002,2]
[367332880,1750753853180,-460.0,0.0002,2]
[367332881,1750753853190,-460.0,0.0002,2]
[367332882,1750753853200,-460.0,0.0002,2]
[367332883,1750753853209,-36359.19400879,0.0002,2]
[367332884,1750753853218,-460.0,0.0002,2]
[367332885,1750753853228,-460.0,0.0002,2]
[367332886,1750753853239,-460.0,0.0002,2]
[367332887,1750753853248,-460.0,0.0002,2]
[367332888,1750753853257,-460.0,0.0002,2]
[367332889,1750753853268,-3596.87,0.0002,2]
[367332890,1750753853278,-553.59,0.0002,2]
[367332891,1750753853288,-1102.05,0.0002,2]
[367332892,1750753853297,-460.0,0.0002,2]
[367332893,1750753853307,-460.0,0.0002,2]
[367332894,1750753853317,-460.0,0.0002,2]
[367332895,1750753853326,-460.0,0.0002,2]
[367332896,1750753853336,-1669.02,0.0002,2]
[367332897,1750753853345,-460.0,0.0002,2]
[367332898,1750753853355,-460.22,0.0002,2]
[367332899,1750753853365,-460.0,0.0002,2]
[367332900,1750753853374,-460.0,0.0002,2]
[367332901,1750753853383,-460.0,0.0002,2]
[367332902,1750753853392,-1429.9,0.0002,2]
[367332903,1750753853401,-1393.46,0.0002,2]
[367332904,1750753853411,-4047.25,0.0002,2]
[367332905,1750753853421,-1153.41,0.0002,2]
[367332906,1750753853430,-460.0,0.0002,2]
[367332907,1750753853439,-460.0,0.0002,2]
[367332908,1750753853449,-460.0,0.0002,2]
[367332909,1750753853458,-460.0,0.0002,2]
[367332910,1750753853468,-460.0,0.0002,2]
[367332911,1750753853477,-460.0,0.0002,2]
[367332912,1750753853486,-460.0,0.0002,2]
[367332913,1750753853496,-1245.34,0.0002,2]
[367332914,1750753853505,-460.0,0.0002,2]
[367332915,1750753853514,-1260.54,0.0002,2]
[367332916,1750753853525,-460.0,0.0002,2]
[367332917,1750753853535,-460.0,0.0002,2]
[367332918,1750753853545,-469.21869622,0.0002,2]
[367332919,1750753853555,-460.0,0.0002,2]
[367332920,1750753853565,-460.0,0.0002,2]
[367332921,1750753853575,-460.0,0.0002,2]
[367332922,1750753853584,-1307.67,0.0002,2]
[367332923,1750753853593,-3803.53,0.0002,2]
[367332924,1750753853602,-632.19,0.0002,2]
[367332925,1750753853612,-460.0,0.0002,2]
[367332926,1750753853622,-460.0,0.0002,2]
[367332927,1750753853634,-2444.82,0.0002,2]
[367332928,1750753853644,-460.0,0.0002,2]
[367332929,1750753853655,-460.0,0.0002,2]
[367332930,1750753853664,-495.64,0.0002,2]
[367332931,1750753853673,-4883.92,0.0002,2]
[367332932,1750753853682,-460.0,0.0002,2]
[367332933,1750753853692,-460.0,0.0002,2]
[367332934,1750753853701,-460.0,0.0002,2]
[367332935,1750753853711,-460.0,0.0002,2]
[367332936,1750753853720,-460.0,0.0002,2]
[367332937,1750753853730,-524.71,0.0002,2]
[367332938,1750753853739,-1033.7,0.0002,2]
[367332939,1750753853749,-1169.19,0.0002,2]
[367332940,1750753853759,-460.0,0.0002,2]
[367332941,1750753853768,-993.21,0.0002,2]
[367332942,1750753853778,-460.0,0.0002,2]
[367332943,1750753853787,-460.0,0.0002,2]
[367332944,1750753853797,-460.0,0.0002,2]
[367332945,1750753853806,-460.0,0.0002,2]
[367332946,1750753853815,-2909.68,0.0002,2]
[367332947,1750753853825,-460.0,0.0002,2]
[367332948,1750753853834,-11187.30243982,0.0002,2]
[367332949,1750753853843,-970.5,0.0002,2]
[367332950,1750753853853,-460.0,0.0002,2]
[367332951,1750753853862,-13640.56659704,0.0002,2]
[367332952,1750753853871,-1536.63,0.0002,2]
[367332953,1750753853881,-1186.30353406,0.0002,2]
[367332954,1750753853891,-16838.65825531,0.0002,20]
[367332955,1750753853901,-150.0008541,0.0002,7]
[367332956,1750753853912,-361.23988175,0.0002,2]
[367332957,1750753853922,-30000.0,0.0002,2]
[367332958,1750753853931,-2871.16349796,0.0002,2]
[367332959,1750753853941,-460.0,0.0002,2]
[367332960,1750753853951,-4779.35,0.0002,2]
[367332961,1750753853960,-7777.0,0.0002,7]
[367332962,1750753853970,-559.38,0.0002,2]
[367332963,1750753853979,-67593.11528451,0.0002,2]
[367332964,1750753853989,-460.0,0.0002,2]
[367332965,1750753853998,-10000.0,0.0002,2]
[367332966,1750753854010,-460.0,0.0002,2]
[367332967,1750753854025,-490.83,0.0002,2]
[367332968,1750753854035,-460.0,0.0002,2]
[367332969,1750753854045,-3740.04,0.0002,2]
[367332970,1750753854054,-784.58,0.0002,2]
[367332971,1750753854064,-460.0,0.0002,2]
[367332972,1750753854073,-460.0,0.0002,2]
[367332973,1750753854083,-460.0,0.0002,2]